bitfinex/quotes_SOLUSD_20250417
["timestamp","ask_amount","ask_price","bid_price","bid_amount"]
[1744852074832,82.8,131.51,131.5,13.71999061]
[1744852075543,82.8,131.51,131.48,7.6057195]
[1744852075751,82.8,131.5,131.47,0.063]
[1744852075925,82.8,131.49,131.47,13.78299061]
[1744852076844,82.8,131.49,131.47,0.063]
[1744852077049,90.40518198,131.49,131.47,0.063]
[1744852078027,82.8,131.49,131.47,0.063]
[1744852078324,82.8,131.49,131.47,13.78299061]
[1744852079243,82.8,131.48,131.47,13.78299061]
[1744852080333,82.8,131.48,131.47,21.38928862]
[1744852080718,82.8,131.48,131.47,13.78299061]
[1744852081149,82.8,131.48,131.47,0.063]
[1744852081444,82.8,131.48,131.47,13.78299061]
[1744852087249,82.8,131.48,131.47,21.38928862]
[1744852088825,67.4,131.48,131.47,21.38928862]
[1744852091048,67.4,131.51,131.47,21.38928862]
[1744852091261,67.4,131.51,131.49,13.71999061]
[1744852092428,88.72418101,131.51,131.47,0.063]
[1744852093065,75.0041904,131.51,131.47,13.78299061]
[1744852093270,75.0041904,131.51,131.47,8.85655457]
[1744852093569,18.64964886,131.5,131.47,0.063]
[1744852096542,26.25440752,131.5,131.47,0.063]
[1744852096870,67.4,131.49,131.47,0.063]
[1744852097363,67.4,131.48,131.47,0.063]
[1744852098381,18.64964886,131.48,131.47,0.063]
[1744852102295,18.64964886,131.5,131.47,13.80362561]
[1744852102443,27.6115,131.53,131.47,0.063]
[1744852102444,82.8,131.49,131.47,0.063]
[1744852102649,82.8,131.49,131.48,13.74062561]
[1744852103373,82.8,131.49,131.48,21.34634511]
[1744852108578,82.8,131.52,131.48,21.34634511]
[1744852108757,82.8,131.52,131.5,13.74062561]
[1744852109061,82.8,131.51,131.5,13.74062561]
[1744852109479,82.8,131.51,131.49,13.74062561]
[1744852111078,82.8,131.51,131.48,13.74062561]
[1744852111467,82.8,131.51,131.47,21.40969319]
[1744852111759,82.8,131.5,131.47,21.40969319]
[1744852113489,82.8,131.5,131.48,13.74062561]
[1744852115566,82.8,131.5,131.48,21.34629634]
[1744852115765,82.8,131.5,131.49,13.74062561]
[1744852117316,82.8,131.5,131.49,8.78915819]
[1744852118791,82.8,131.5,131.49,16.39429926]
[1744852122102,82.8,131.52,131.49,16.39429926]
[1744852122283,82.8,131.52,131.51,8.78915819]
[1744852123000,82.8,131.54,131.51,8.78915819]
[1744852123297,82.8,131.54,131.53,8.78915819]
[1744852124504,82.8,131.54,131.53,16.39198644]
[1744852126409,82.8,131.54,131.52,7.6031889]
[1744852126706,82.8,131.54,131.53,8.78915819]
[1744852128290,82.8,131.54,131.53,16.39198644]
[1744852131119,82.8,131.54,131.53,8.78915819]
[1744852133708,82.8,131.54,131.53,16.39198644]
[1744852135099,0.063,131.55,131.53,16.39198644]
[1744852135298,0.063,131.55,131.54,8.78915819]
[1744852136123,0.063,131.55,131.54,16.39140845]
[1744852137324,0.063,131.55,131.54,8.78915819]
[1744852137714,8.85215819,131.55,131.51,34.78915819]
[1744852138117,16.45386893,131.55,131.51,8.78915819]
[1744852139717,8.85215819,131.55,131.51,8.78915819]
[1744852140215,8.85215819,131.55,131.51,16.39304598]
[1744852140619,0.063,131.55,131.51,16.39304598]
[1744852141020,82.8,131.54,131.51,8.78915819]
[1744852141229,82.8,131.54,131.5,8.78915819]
[1744852141522,82.8,131.53,131.5,8.78915819]
[1744852141908,82.8,131.53,131.49,8.78915819]
[1744852142127,82.8,131.52,131.49,8.78915819]
[1744852143019,82.8,131.52,131.5,8.78915819]
[1744852143205,82.8,131.52,131.49,8.78915819]
[1744852146729,82.8,131.51,131.49,8.78915819]
[1744852147236,82.8,131.51,131.5,8.78915819]
[1744852147937,82.8,131.54,131.5,8.78915819]
[1744852148105,82.8,131.54,131.53,8.78915819]
[1744852148734,82.8,131.54,131.53,16.39198644]
[1744852149208,0.063,131.55,131.53,16.39198644]
[1744852149425,0.063,131.55,131.54,8.78915819]
[1744852151602,0.063,131.55,131.54,16.39140845]
[1744852152322,0.063,131.55,131.54,8.78915819]
[1744852152515,0.063,131.55,131.54,34.78915819]
[1744852154233,0.063,131.55,131.54,42.39140845]
[1744852156127,0.063,131.55,131.54,8.78915819]
[1744852162538,0.063,131.55,131.5,22.2611]
[1744852162831,82.863,131.55,131.52,8.78915819]
[1744852163036,82.863,131.55,131.53,8.78915819]
[1744852165138,82.863,131.55,131.54,16.39140845]
[1744852165826,82.863,131.55,131.54,50.14580845]
[1744852165827,0.063,131.55,131.54,50.14580845]
[1744852173354,0.063,131.55,131.54,26.0]
[1744852173638,0.063,131.55,131.53,8.78915819]
[1744852173940,0.063,131.55,131.54,8.78915819]
[1744852175049,82.8,131.54,131.5,8.78915819]
[1744852175249,82.8,131.53,131.49,26.0]
[1744852175424,82.8,131.53,131.51,8.78915819]
[1744852175843,82.8,131.53,131.52,8.78915819]
[1744852176036,82.8,131.53,131.49,26.0]
[1744852176341,82.8,131.53,131.51,8.78915819]
[1744852178820,82.8,131.53,131.52,8.78915819]
[1744852179025,82.863,131.55,131.52,8.78915819]
[1744852179228,82.863,131.55,131.54,8.78915819]
[1744852179434,0.063,131.55,131.54,8.78915819]
[1744852181146,0.063,131.55,131.54,16.39140845]
[1744852181560,0.063,131.55,131.54,8.78915819]
[1744852182344,0.063,131.55,131.53,8.78915819]
[1744852183536,0.063,131.55,131.54,8.78915819]
[1744852189664,0.063,131.55,131.54,16.39140845]
[1744852198745,0.063,131.55,131.54,8.78915819]
[1744852201345,0.063,131.55,131.54,16.39140845]
[1744852204868,18.64964886,131.53,131.47,19.49557217]
[1744852205064,18.64964886,131.5,131.47,19.49557217]
[1744852205253,27.43880705,131.5,131.47,11.889464]
[1744852205774,35.04338681,131.5,131.47,11.889464]
[1744852206275,82.8,131.49,131.47,11.889464]
[1744852206787,82.8,131.49,131.47,0.063]
[1744852207775,82.8,131.49,131.47,8.85215819]
[1744852209574,82.8,131.49,131.48,8.78915819]
[1744852210083,82.8,131.49,131.47,0.063]
[1744852210445,82.8,131.49,131.48,8.78915819]
[1744852210645,82.8,131.49,131.47,8.85215819]
[1744852210849,82.8,131.49,131.47,0.063]
[1744852211063,82.8,131.49,131.47,8.85215819]
[1744852211270,82.8,131.48,131.47,8.85215819]
[1744852211476,82.8,131.48,131.47,16.4583507]
[1744852213755,82.8,131.51,131.47,37.02869573]
[1744852214056,82.8,131.51,131.5,8.78915819]
[1744852214558,82.8,131.51,131.5,16.39372092]
[1744852220269,82.8,131.54,131.5,42.39372092]
[1744852220471,82.8,131.53,131.52,8.78915819]
[1744852220977,0.063,131.55,131.52,8.78915819]
[1744852221165,0.063,131.55,131.54,34.78915819]
[1744852221502,0.063,131.55,131.53,8.78915819]
[1744852222280,0.063,131.55,131.54,8.78915819]
[1744852224280,0.063,131.55,131.54,16.39140845]
[1744852226990,0.063,131.55,131.54,8.78915819]
[1744852228990,0.063,131.55,131.54,16.39140845]
[1744852229395,0.063,131.55,131.54,8.78915819]
[1744852229993,82.8,131.54,131.48,6.3165]
[1744852230198,82.8,131.53,131.5,34.78915819]
[1744852230390,27.43880705,131.51,131.47,0.063]
[1744852230594,27.43880705,131.48,131.47,0.063]
[1744852230900,18.64964886,131.48,131.47,0.063]
[1744852231597,91.58915819,131.5,131.47,0.063]
[1744852231802,18.64964886,131.49,131.47,0.063]
[1744852232289,91.58915819,131.5,131.47,0.063]
[1744852232290,82.8,131.5,131.47,0.063]
[1744852232482,82.8,131.5,131.47,8.85215819]
[1744852232890,82.8,131.5,131.47,0.063]
[1744852233204,82.8,131.5,131.47,13.80363417]
[1744852233885,82.8,131.5,131.48,13.74063417]
[1744852234200,82.8,131.5,131.49,13.74063417]
[1744852235081,82.8,131.5,131.48,13.74063417]
[1744852235603,82.8,131.5,131.47,21.40972243]
[1744852237706,82.8,131.5,131.48,13.74063417]
[1744852240405,82.8,131.5,131.49,13.74063417]
[1744852240579,82.8,131.5,131.48,21.34633186]
[1744852240986,82.8,131.5,131.48,13.74063417]
[1744852241507,82.8,131.5,131.48,21.34622326]
[1744852243810,82.8,131.5,131.49,13.74063417]
[1744852244004,82.8,131.5,131.48,21.34622326]
[1744852244191,82.8,131.5,131.48,13.74063417]
[1744852247015,82.8,131.5,131.47,13.80363417]
[1744852247513,90.40461263,131.5,131.47,0.063]
[1744852248021,82.8,131.5,131.47,0.063]
[1744852249993,82.8,131.5,131.47,13.80363417]
[1744852250824,82.8,131.5,131.48,13.74063417]
[1744852250994,82.8,131.5,131.49,13.74063417]
[1744852252212,82.8,131.5,131.49,21.34577524]
[1744852252402,82.8,131.54,131.49,21.34577524]
[1744852252606,82.8,131.53,131.5,13.74063417]
[1744852255395,82.8,131.53,131.5,8.78910447]
[1744852257514,82.8,131.53,131.51,8.78910447]
[1744852258316,82.8,131.52,131.51,8.78910447]
[1744852258711,82.8,131.52,131.5,8.78910447]
[1744852258917,82.8,131.52,131.51,8.78910447]
[1744852259912,82.8,131.54,131.51,16.3929468]
[1744852260117,82.8,131.54,131.53,8.78910447]
[1744852260422,0.063,131.55,131.53,8.78910447]
[1744852260723,0.063,131.55,131.54,8.78910447]
[1744852262309,0.063,131.55,131.54,16.39135473]
[1744852262516,0.063,131.55,131.54,8.78910447]
[1744852262713,0.063,131.55,131.54,16.39135473]
[1744852263218,0.063,131.55,131.54,8.78910447]
[1744852264633,82.8,131.54,131.49,7.60514107]
[1744852264817,82.8,131.53,131.49,16.39424554]
[1744852265120,82.8,131.53,131.5,8.78910447]
[1744852265420,82.8,131.53,131.5,16.39361146]
[1744852266007,82.8,131.53,131.52,8.78910447]
[1744852266920,0.063,131.55,131.52,43.94552235]
[1744852267105,0.063,131.55,131.54,13.72300455]
[1744852267931,0.063,131.55,131.54,21.32525481]
[1744852270903,0.063,131.55,131.54,27.37025481]
[1744852272017,0.063,131.55,131.53,1.5614]
[1744852272219,0.063,131.55,131.52,55.54300455]
[1744852272419,0.063,131.55,131.54,13.72300455]
[1744852273019,82.863,131.55,131.54,13.72300455]
[1744852273730,82.863,131.55,131.53,13.72300455]
[1744852274330,82.863,131.55,131.54,13.72300455]
[1744852276331,82.863,131.55,131.54,21.32525481]
[1744852277935,82.863,131.55,131.54,13.72300455]
[1744852278535,82.8,131.54,131.5,9.12852447]
[1744852278714,82.8,131.53,131.5,7.60422447]
[1744852278914,82.8,131.53,131.5,21.32722902]
[1744852280718,82.8,131.53,131.52,13.72300455]
[1744852282917,82.8,131.53,131.52,21.32641087]
[1744852283737,82.8,131.53,131.52,13.72300455]
[1744852286324,82.8,131.53,131.5,13.72300455]
[1744852286525,82.8,131.52,131.48,41.8]
[1744852286725,82.8,131.51,131.48,63.12852945]
[1744852287625,82.8,131.51,131.49,13.72300455]
[1744852291845,82.8,131.5,131.47,0.063]
[1744852292434,115.17265341,131.49,131.47,0.063]
[1744852292747,82.8,131.49,131.47,0.063]
[1744852292947,82.8,131.49,131.47,13.78600455]
[1744852293840,82.8,131.49,131.47,0.063]
[1744852294833,96.52300455,131.49,131.47,0.063]
[1744852295050,82.8,131.49,131.47,0.063]
[1744852295851,82.8,131.49,131.47,13.78600455]
[1744852296434,82.8,131.49,131.48,13.72300455]
[1744852296927,82.8,131.52,131.48,13.72300455]
[1744852297129,82.8,131.52,131.47,0.063]
[1744852297130,82.8,131.51,131.49,8.79125844]
[1744852297553,98.6,131.54,131.49,8.79125844]
[1744852297852,98.6,131.54,131.51,8.79125844]
[1744852298650,98.6,131.54,131.52,8.79125844]
[1744852298836,82.8,131.54,131.52,8.79125844]
[1744852299238,82.8,131.54,131.52,13.72816187]
[1744852299949,82.8,131.54,131.53,13.72816187]
[1744852300140,0.063,131.55,131.53,13.72816187]
[1744852300447,0.063,131.55,131.54,13.72816187]
[1744852301934,0.063,131.55,131.54,21.33041213]
[1744852302129,0.063,131.55,131.53,13.72816187]
[1744852303946,0.063,131.55,131.51,13.72816187]
[1744852304150,82.8,131.54,131.51,13.72816187]
[1744852304360,82.8,131.54,131.52,13.72816187]
[1744852305155,82.8,131.54,131.53,13.72816187]
[1744852306345,82.8,131.54,131.53,21.33099012]
[1744852307350,0.063,131.55,131.53,64.61739012]
[1744852307650,0.03,131.56,131.55,6.60336157]
[1744852307857,0.03,131.56,131.55,20.33152344]
[1744852308530,0.03,131.56,131.55,27.9331958]
[1744852310763,0.03,131.56,131.55,28.07535737]
[1744852311055,0.03,131.56,131.55,27.79103423]
[1744852318160,1e-08,131.56,131.55,28.21751894]
[1744852319039,0.03,131.58,131.57,26.0]
[1744852319243,0.03,131.58,131.57,39.72816187]
[1744852320142,0.03,131.58,131.57,47.3286787]
[1744852323568,0.03,131.58,131.57,61.34116371]
[1744852326142,0.03,131.58,131.57,47.3286787]
[1744852329075,0.03,131.58,131.57,61.34116371]
[1744852329259,0.03,131.58,131.57,77.75532662]
[1744852329456,0.03,131.58,131.57,77.89748819]
[1744852329855,0.03,131.59,131.58,0.14216157]
[1744852330059,0.03,131.61,131.59,0.28432314]
[1744852330974,0.03,131.62,131.61,26.28432314]
[1744852331276,0.03,131.62,131.61,39.98471563]
[1744852331576,1e-08,131.62,131.61,47.29859931]
[1744852333865,1e-08,131.62,131.61,47.72508402]
[1744852334665,1e-08,131.63,131.62,27.82726969]
[1744852335253,0.03,131.69,131.66,44.64964886]
[1744852335452,2.6220892,131.76,131.68,53.82726969]
[1744852335654,1e-08,131.7,131.69,61.42086069]
[1744852337971,1e-08,131.7,131.69,7.593591]
[1744852338166,0.03,131.68,131.63,1.5659]
[1744852338469,0.03,131.68,131.65,13.70039249]
[1744852338675,0.03,131.68,131.64,47.29686772]
[1744852338846,0.03,131.68,131.65,13.70039249]
[1744852339048,13.70039249,131.66,131.62,13.70039249]
[1744852339356,7.59513256,131.67,131.62,13.70039249]
[1744852339665,39.94517391,131.67,131.62,13.70039249]
[1744852339857,26.24478142,131.67,131.62,13.70039249]
[1744852340063,39.94517391,131.67,131.63,13.70039249]
[1744852340255,82.8,131.66,131.63,13.70039249]
[1744852340456,82.8,131.66,131.64,13.70039249]
[1744852341171,82.8,131.66,131.64,21.29649818]
[1744852341373,82.8,131.66,131.65,13.70039249]
[1744852341679,0.03,131.68,131.65,13.70039249]
[1744852341971,0.03,131.68,131.66,13.70039249]
[1744852342958,0.03,131.68,131.64,7.59610569]
[1744852343272,0.03,131.68,131.66,13.70039249]
[1744852344265,0.03,131.68,131.67,13.70039249]
[1744852346266,0.03,131.68,131.67,21.29513692]
[1744852346476,0.03,131.68,131.67,13.70039249]
[1744852346877,0.03,131.68,131.67,7.59474443]
[1744852347065,0.03,131.68,131.67,21.29513692]
[1744852353482,0.03,131.68,131.67,47.29513692]
[1744852361763,0.03,131.68,131.67,13.70039249]
[1744852361962,0.03,131.68,131.67,21.29513692]
[1744852363182,0.03,131.68,131.67,16.35659898]
[1744852363763,1e-08,131.7,131.67,62.88236007]
[1744852363964,1e-08,131.7,131.69,8.76185455]
[1744852365182,1e-08,131.7,131.69,21.28044607]
[1744852365867,1e-08,131.7,131.69,60.96730114]
[1744852366291,1e-08,131.7,131.69,61.39378585]
[1744852368593,1e-08,131.7,131.69,60.96730114]
[1744852370692,1e-08,131.7,131.69,61.39378585]
[1744852370870,82.8,131.75,131.69,80.37776337]
[1744852371076,82.8,131.75,131.74,13.68685507]
[1744852371789,82.8,131.75,131.74,21.27756404]
[1744852372373,2.6520892,131.76,131.74,21.27756404]
[1744852372573,2.6520892,131.76,131.75,13.68685507]
[1744852373687,2.6520892,131.76,131.74,13.68685507]
[1744852373897,2.6520892,131.76,131.73,13.68685507]
[1744852374485,2.6520892,131.76,131.73,21.27801275]
[1744852375207,2.6520892,131.76,131.75,13.68685507]
[1744852376295,2.6520892,131.76,131.74,13.68685507]
[1744852378209,2.6520892,131.76,131.73,21.27811935]
[1744852378590,2.6520892,131.76,131.72,13.68685507]
[1744852378795,2.6520892,131.76,131.73,13.68685507]
[1744852379186,2.6520892,131.76,131.71,15.76]
[1744852379385,82.8,131.75,131.73,13.68685507]
[1744852381019,82.8,131.75,131.74,13.68685507]
[1744852381194,82.8,131.75,131.72,7.59155056]
[1744852381399,82.8,131.75,131.73,13.68685507]
[1744852381722,82.8,131.75,131.7,26.0]
[1744852381879,18.64964886,131.73,131.69,13.68685507]
[1744852382083,13.68685507,131.72,131.68,13.68685507]
[1744852382312,82.8,131.71,131.68,13.68685507]
[1744852382514,82.8,131.71,131.69,13.68685507]
[1744852382729,82.8,131.71,131.67,23.33454142]
[1744852383009,82.8,131.71,131.69,13.68685507]
[1744852383507,82.8,131.71,131.7,13.68685507]
[1744852383683,82.8,131.71,131.69,21.28029151]
[1744852384908,82.8,131.71,131.68,26.0]
[1744852384909,82.8,131.71,131.7,21.27986949]
[1744852385282,82.8,131.71,131.7,13.68685507]
[1744852386113,82.8,131.71,131.69,13.68685507]
[1744852387414,82.8,131.71,131.69,21.28038604]
[1744852387794,82.8,131.71,131.7,13.68685507]
[1744852389215,82.8,131.71,131.7,8.76195602]
[1744852389409,82.8,131.71,131.69,8.76195602]
[1744852390390,82.8,131.71,131.68,7.59398926]
[1744852390391,82.8,131.71,131.7,8.76195602]
[1744852390791,82.8,131.71,131.68,7.59398926]
[1744852391007,82.8,131.71,131.7,8.76195602]
[1744852393715,82.8,131.71,131.7,16.35497044]
[1744852396795,82.8,131.7,131.64,7.59647523]
[1744852397113,82.8,131.69,131.67,16.35622381]
[1744852397311,82.8,131.68,131.65,42.35777144]
[1744852397708,82.8,131.68,131.65,16.35777144]
[1744852397894,91.56195602,131.68,131.63,0.063]
[1744852398095,82.8,131.67,131.64,8.76195602]
[1744852398297,82.8,131.67,131.65,8.76195602]
[1744852398923,82.8,131.67,131.66,8.76195602]
[1744852399235,82.8,131.67,131.65,13.69865513]
[1744852401299,82.8,131.67,131.63,7.66001139]
[1744852401521,82.8,131.67,131.63,21.35866652]
[1744852401710,82.8,131.67,131.64,13.69865513]
[1744852403029,82.8,131.67,131.64,21.29459425]
[1744852403233,82.8,131.67,131.65,13.69865513]
[1744852404244,82.8,131.67,131.66,13.69865513]
[1744852404529,82.8,131.69,131.66,13.69865513]
[1744852404733,82.8,131.69,131.67,13.69865513]
[1744852405121,82.8,131.69,131.67,21.29336404]
[1744852405916,82.8,131.71,131.68,13.69865513]
[1744852406121,82.8,131.71,131.69,13.69865513]
[1744852406318,7.635,131.74,131.67,7.59470891]
[1744852406319,82.8,131.74,131.7,13.69865513]
[1744852406520,82.8,131.74,131.72,13.69865513]
[1744852406724,82.8,131.74,131.73,13.69865513]
[1744852407424,2.6520892,131.76,131.73,13.69865513]
[1744852407816,82.8,131.75,131.72,13.69865513]
[1744852410800,82.8,131.75,131.71,13.69865513]
[1744852411720,13.69865513,131.73,131.68,21.29260493]
[1744852411937,82.8,131.72,131.68,21.29260493]
[1744852412505,82.8,131.71,131.69,13.69865513]
[1744852414133,82.8,131.71,131.7,13.69865513]
[1744852415516,82.8,131.74,131.7,13.69865513]
[1744852415827,82.8,131.74,131.73,13.69865513]
[1744852416027,82.8,131.74,131.72,13.69865513]
[1744852416227,82.8,131.74,131.7,13.69865513]
[1744852416526,82.8,131.73,131.7,13.69865513]
[1744852417619,82.8,131.73,131.71,13.69865513]
[1744852418028,82.8,131.73,131.7,7.59268791]
[1744852418221,82.8,131.73,131.71,13.69865513]
[1744852419834,82.8,131.73,131.69,13.69865513]
[1744852420038,82.8,131.73,131.7,13.69865513]
[1744852420930,82.8,131.72,131.68,7.59416767]
[1744852421137,82.8,131.72,131.68,21.2928228]
[1744852421324,82.8,131.72,131.69,13.69865513]
[1744852422122,82.8,131.72,131.68,21.2928228]
[1744852422629,82.8,131.72,131.67,26.0]
[1744852422630,104.09051829,131.72,131.66,15.74]
[1744852422810,82.8,131.71,131.68,13.69865513]
[1744852423015,82.8,131.71,131.67,13.69865513]
[1744852423209,82.8,131.71,131.67,21.29304732]
[1744852423639,82.8,131.71,131.68,13.69865513]
[1744852425635,82.8,131.71,131.7,13.69865513]
[1744852427850,82.8,131.71,131.67,1.577]
[1744852428050,18.64964886,131.69,131.65,13.69865513]
[1744852428221,18.64964886,131.69,131.64,13.69865513]
[1744852428222,32.34830399,131.69,131.64,13.69865513]
[1744852428423,82.8,131.68,131.65,13.69865513]
[1744852429125,82.8,131.68,131.65,8.76912647]
[1744852429347,82.8,131.68,131.66,8.76912647]
[1744852430626,82.8,131.68,131.67,8.76912647]
[1744852430850,82.8,131.72,131.67,8.76912647]
[1744852431149,82.8,131.73,131.7,13.69123236]
[1744852431319,82.8,131.72,131.7,13.69123236]
[1744852431519,82.8,131.72,131.69,7.59337513]
[1744852431520,82.8,131.72,131.69,21.28460749]
[1744852431820,82.8,131.72,131.7,13.69123236]
[1744852432437,82.8,131.72,131.71,13.69123236]
[1744852433455,82.8,131.72,131.71,21.28367029]
[1744852434045,82.8,131.75,131.71,21.28367029]
[1744852434244,82.8,131.75,131.72,13.69123236]
[1744852434932,82.8,131.75,131.73,13.69123236]
[1744852435324,82.8,131.75,131.72,13.69123236]
[1744852435527,82.8,131.75,131.72,21.28305593]
[1744852436824,82.8,131.75,131.67,32.2404]
[1744852437024,96.49123236,131.74,131.69,13.69123236]
[1744852437439,96.49123236,131.74,131.68,7.59416767]
[1744852437440,18.64964886,131.72,131.68,13.69123236]
[1744852437627,96.49123236,131.71,131.66,29.43123236]
[1744852438345,82.8,131.7,131.66,29.43123236]
[1744852438539,82.8,131.7,131.66,37.02639646]
[1744852439249,82.8,131.7,131.67,13.69123236]
[1744852440347,82.8,131.7,131.68,13.69123236]
[1744852440551,82.8,131.7,131.69,13.69123236]
[1744852440928,82.8,131.7,131.67,7.59420209]
[1744852441248,82.8,131.7,131.67,21.28543445]
[1744852441429,82.8,131.7,131.69,13.69123236]
[1744852441831,82.8,131.72,131.69,13.69123236]
[1744852442433,82.8,131.72,131.7,13.69123236]
[1744852443046,82.8,131.72,131.7,21.28410643]
[1744852444450,82.8,131.72,131.7,13.69123236]
[1744852448758,82.8,131.72,131.7,21.284215]
[1744852450462,82.8,131.72,131.7,13.69123236]
[1744852450637,82.8,131.72,131.69,21.28459235]
[1744852450836,82.8,131.72,131.69,13.69123236]
[1744852451358,82.8,131.72,131.68,7.59395918]
[1744852451538,82.8,131.72,131.69,13.69123236]
[1744852452864,82.8,131.72,131.69,21.28469023]
[1744852453053,82.8,131.72,131.69,13.69123236]
[1744852453560,82.8,131.72,131.71,13.69123236]
[1744852454959,82.8,131.72,131.71,21.28367029]
[1744852455162,82.8,131.75,131.71,21.28367029]
[1744852455457,82.8,131.74,131.71,7.59243793]
[1744852455861,85.4520892,131.76,131.71,7.59243793]
[1744852456157,85.4520892,131.76,131.71,42.31353275]
[1744852456459,85.4520892,131.76,131.72,1.5372]
[1744852456647,85.4520892,131.76,131.75,13.69123236]
[1744852457962,85.4520892,131.76,131.74,13.69123236]
[1744852458160,96.49123236,131.75,131.7,7.59256987]
[1744852458362,115.14088122,131.74,131.69,13.69123236]
[1744852459446,101.44964886,131.74,131.7,13.69123236]
[1744852460162,109.04039613,131.74,131.7,13.69123236]
[1744852460366,122.73162849,131.74,131.7,13.69123236]
[1744852460548,122.73162849,131.74,131.69,21.28425187]
[1744852461265,122.73162849,131.74,131.7,13.69123236]
[1744852462068,122.73162849,131.74,131.69,13.69123236]
[1744852462270,82.8,131.73,131.69,13.69123236]
[1744852463165,96.49123236,131.73,131.69,13.69123236]
[1744852463380,82.8,131.73,131.69,21.2847638]
[1744852464776,82.8,131.73,131.7,13.69123236]
[1744852465855,82.8,131.73,131.7,21.28416845]
[1744852466563,82.8,131.72,131.7,21.28416845]
[1744852469878,82.8,131.72,131.7,13.69123236]
[1744852470273,82.8,131.72,131.67,7.59474443]
[1744852470274,82.8,131.71,131.67,7.59474443]
[1744852470476,82.8,131.71,131.67,21.28597679]
[1744852470662,96.49123236,131.71,131.66,63.02637397]
[1744852471055,82.8,131.71,131.67,21.2857818]
[1744852471256,82.8,131.71,131.67,16.36075351]
[1744852473168,82.8,131.71,131.66,49.3351489]
[1744852473371,82.8,131.71,131.67,13.69759706]
[1744852474259,82.8,131.71,131.69,13.69759706]
[1744852474480,82.8,131.71,131.69,21.29098677]
[1744852474676,82.8,131.71,131.68,21.29169201]
[1744852475987,82.8,131.71,131.68,7.59409495]
[1744852476159,82.8,131.71,131.68,21.29169201]
[1744852477676,82.8,131.71,131.67,13.69759706]
[1744852478282,82.8,131.71,131.67,21.29225173]
[1744852478482,82.8,131.71,131.68,13.69759706]
[1744852479587,82.8,131.71,131.67,21.29225173]
[1744852480280,82.8,131.71,131.68,13.69759706]
[1744852480588,96.49759706,131.71,131.66,63.03269451]
[1744852480772,96.49759706,131.71,131.66,47.29269451]
[1744852480980,82.8,131.71,131.67,13.69759706]
[1744852481171,82.8,131.7,131.67,13.69759706]
[1744852481367,32.34724592,131.69,131.64,7.6593486]
[1744852481578,96.49759706,131.68,131.64,0.063]
[1744852481774,82.8,131.68,131.64,13.76059706]
[1744852482376,104.0920137,131.68,131.64,13.76059706]
[1744852482894,104.0920137,131.68,131.64,0.063]
[1744852483077,96.49759706,131.68,131.64,13.76059706]
[1744852483276,82.8,131.68,131.64,13.76059706]
[1744852484276,82.8,131.68,131.64,21.35703454]
[1744852484675,96.49759706,131.68,131.64,13.76059706]
[1744852485000,96.49759706,131.68,131.64,0.063]
[1744852485170,96.49759706,131.68,131.64,21.35701755]
[1744852485992,96.49759706,131.68,131.64,13.76059706]
[1744852486196,96.49759706,131.68,131.64,0.063]
[1744852486573,18.64964886,131.67,131.64,0.063]
[1744852486996,82.8,131.66,131.64,0.063]
[1744852487977,101.44964886,131.65,131.64,0.063]
[1744852488790,82.8,131.65,131.64,0.063]
[1744852488976,115.14724592,131.68,131.64,13.76059706]
[1744852489175,101.44964886,131.68,131.64,13.76059706]
[1744852490100,82.8,131.68,131.65,7.59589821]
[1744852490407,82.8,131.7,131.67,13.69759706]
[1744852490580,82.8,131.72,131.69,13.69759706]
[1744852490978,82.8,131.72,131.65,52.58564374]